[Event "15e Open International de Quenza"]
[Site "Quenza"]
[Date "2026.07.05"]
[Round "5.5"]
[White "THIBOUS, Mathis"]
[Black "KOSTENIUK, Alexandra"]
[Result "1/2-1/2"]
[TimeControl "5min+3s"]
[WhiteTitle "-"]
[BlackTitle "GM"]
[WhiteFideId "-"]
[BlackFideId "-"]
[WhiteElo "2003"]
[BlackElo "2392"]

1. e4 {[%clk 00:05:03]} {[%emt 00:04:11]} c6 {[%clk 00:05:03]} 2. Nf3 {[%clk
00:05:03]} {[%emt 00:00:02]} d5 {[%clk 00:05:03]} {[%emt 00:00:01]} 3. d3
{[%clk 00:05:03]} Qc7 {[%clk 00:05:02]} {[%emt 00:00:04]} 4. Nbd2 {[%clk
00:05:03]} {[%emt 00:00:02]} e5 {[%clk 00:05:02]} {[%emt 00:00:02]} 5. d4
{[%clk 00:05:03]} exd4 {[%clk 00:04:58]} {[%emt 00:00:07]} 6. Nxd4 {[%clk
00:05:03]} {[%emt 00:00:01]} Nf6 {[%clk 00:04:48]} {[%emt 00:00:13]} 7. exd5
{[%clk 00:05:03]} {[%emt 00:00:03]} Nxd5 {[%clk 00:04:32]} {[%emt 00:00:19]} 8.
Bc4 {[%clk 00:04:55]} {[%emt 00:00:11]} Qe5+ {[%clk 00:04:11]} {[%emt
00:00:24]} 9. Qe2 {[%clk 00:04:38]} {[%emt 00:00:20]} Qxe2+ {[%clk 00:04:11]}
{[%emt 00:00:03]} 10. Nxe2 {[%clk 00:04:35]} {[%emt 00:00:06]} Nb6 {[%clk
00:04:10]} {[%emt 00:00:04]} 11. Bd3 {[%clk 00:04:25]} {[%emt 00:00:13]} Be7
{[%clk 00:04:08]} {[%emt 00:00:05]} 12. O-O {[%clk 00:04:25]} {[%emt 00:00:03]}
N8d7 {[%clk 00:04:06]} {[%emt 00:00:05]} 13. c3 {[%clk 00:04:22]} {[%emt
00:00:06]} Ne5 {[%clk 00:04:05]} {[%emt 00:00:04]} 14. Bc2 {[%clk 00:04:20]}
{[%emt 00:00:04]} O-O {[%clk 00:04:05]} {[%emt 00:00:02]} 15. Nd4 {[%clk
00:04:19]} {[%emt 00:00:04]} Re8 {[%clk 00:03:02]} {[%emt 00:01:07]} 16. h3
{[%clk 00:04:14]} {[%emt 00:00:08]} Bd6 {[%clk 00:02:55]} {[%emt 00:00:10]} 17.
b3 {[%clk 00:03:46]} {[%emt 00:00:31]} Ng6 {[%clk 00:02:49]} {[%emt 00:00:09]}
18. Ne4 {[%clk 00:02:57]} {[%emt 00:00:51]} Bf8 {[%clk 00:02:49]} {[%emt
00:00:03]} 19. c4 {[%clk 00:01:59]} {[%emt 00:01:02]} a5 {[%clk 00:02:49]}
{[%emt 00:00:02]} 20. a4 {[%clk 00:01:59]} {[%emt 00:00:03]} Bb4 {[%clk
00:02:31]} {[%emt 00:00:21]} 21. Bb2 {[%clk 00:01:24]} {[%emt 00:00:37]} f6
{[%clk 00:02:06]} {[%emt 00:00:28]} 22. Rad1 {[%clk 00:01:24]} {[%emt
00:00:03]} Nf4 {[%clk 00:02:01]} {[%emt 00:00:08]} 23. Bb1 {[%clk 00:01:04]}
{[%emt 00:00:23]} Bd7 {[%clk 00:01:35]} {[%emt 00:00:29]} 24. Kh2 {[%clk
00:00:55]} {[%emt 00:00:11]} Rad8 {[%clk 00:01:34]} {[%emt 00:00:04]} 25. Ng3
{[%clk 00:00:40]} {[%emt 00:00:18]} g6 {[%clk 00:01:25]} {[%emt 00:00:13]} 26.
Ne4 {[%clk 00:00:40]} {[%emt 00:00:02]} Kf7 {[%clk 00:01:01]} {[%emt 00:00:26]}
27. Nxf6 {[%clk 00:00:31]} {[%emt 00:00:12]} Kxf6 {[%clk 00:01:01]} {[%emt
00:00:01]} 28. Nxc6+ {[%clk 00:00:31]} {[%emt 00:00:01]} Kf7 {[%clk 00:01:00]}
{[%emt 00:00:04]} 29. Nxd8+ {[%clk 00:00:29]} {[%emt 00:00:05]} Rxd8 {[%clk
00:01:00]} 30. Be4 {[%clk 00:00:26]} {[%emt 00:00:06]} Ne6 {[%clk 00:00:45]}
{[%emt 00:00:18]} 31. Bd4 {[%clk 00:00:23]} {[%emt 00:00:06]} Nxd4 {[%clk
00:00:38]} {[%emt 00:00:10]} 32. Rxd4 {[%clk 00:00:23]} Bc5 {[%clk 00:00:37]}
{[%emt 00:00:04]} 33. Rd2 {[%clk 00:00:23]} {[%emt 00:00:03]} Rb8 {[%clk
00:00:36]} {[%emt 00:00:04]} 34. Rfd1 {[%clk 00:00:23]} {[%emt 00:00:02]} Be6
{[%clk 00:00:36]} {[%emt 00:00:02]} 35. g3 {[%clk 00:00:23]} {[%emt 00:00:01]}
Bb4 {[%clk 00:00:36]} {[%emt 00:00:03]} 36. Rd3 {[%clk 00:00:23]} {[%emt
00:00:02]} Ke7 {[%clk 00:00:36]} {[%emt 00:00:03]} 37. Kg2 {[%clk 00:00:23]}
Nd7 {[%clk 00:00:36]} {[%emt 00:00:02]} 38. Bd5 {[%clk 00:00:23]} {[%emt
00:00:02]} Bf5 {[%clk 00:00:28]} {[%emt 00:00:10]} 39. Re3+ {[%clk 00:00:23]}
Kf8 {[%clk 00:00:28]} {[%emt 00:00:01]} 40. g4 {[%clk 00:00:23]} Bc2 {[%clk
00:00:28]} {[%emt 00:00:03]} 41. Rc1 {[%clk 00:00:23]} Kg7 {[%clk 00:00:21]}
{[%emt 00:00:10]} 42. Rxc2 {[%clk 00:00:23]} {[%emt 00:00:01]} h5 {[%clk
00:00:21]} {[%emt 00:00:01]} 43. g5 {[%clk 00:00:23]} {[%emt 00:00:01]} Bd6
{[%clk 00:00:17]} {[%emt 00:00:07]} 44. Rce2 {[%clk 00:00:23]} {[%emt
00:00:03]} Rd8 {[%clk 00:00:12]} {[%emt 00:00:08]} 45. h4 {[%clk 00:00:22]}
{[%emt 00:00:04]} Nc5 {[%clk 00:00:12]} {[%emt 00:00:02]} 46. Re7+ {[%clk
00:00:22]} {[%emt 00:00:02]} Bxe7 {[%clk 00:00:12]} {[%emt 00:00:01]} 47. Rxe7+
{[%clk 00:00:22]} {[%emt 00:00:02]} Kf8 {[%clk 00:00:12]} {[%emt 00:00:01]} 48.
Rf7+ {[%clk 00:00:22]} {[%emt 00:00:02]} Ke8 {[%clk 00:00:12]} 49. Rg7 {[%clk
00:00:22]} {[%emt 00:00:02]} Rd6 {[%clk 00:00:12]} 50. Bxb7 {[%clk 00:00:20]}
{[%emt 00:00:07]} Nxb3 {[%clk 00:00:12]} {[%emt 00:00:02]} 51. c5 {[%clk
00:00:17]} {[%emt 00:00:05]} Nxc5 {[%clk 00:00:12]} {[%emt 00:00:02]} 52. Bf3
{[%clk 00:00:17]} {[%emt 00:00:02]} Nxa4 {[%clk 00:00:10]} {[%emt 00:00:05]} 53.
Ra7 {[%clk 00:00:17]} {[%emt 00:00:01]} Nc5 {[%clk 00:00:10]} {[%emt 00:00:02]}
54. Rxa5 {[%clk 00:00:17]} {[%emt 00:00:01]} Ne6 {[%clk 00:00:10]} 55. Ra7
{[%clk 00:00:17]} {[%emt 00:00:09]} Kf7 {[%clk 00:00:07]} 56. Be4+ {[%clk
00:00:17]} {[%emt 00:00:13]} Kg8 {[%clk 00:00:07]} 57. Bc2 {[%clk 00:00:17]}
{[%emt 00:00:04]} Nc5 {[%clk 00:00:07]} 58. Be4 {[%clk 00:00:17]} {[%emt
00:00:04]} Ne6 59. Bc2 {[%clk 00:00:17]} Nc5 1/2-1/2

[Event "15e Open International de Quenza"]
[Site "Quenza"]
[Date "2026.07.05"]
[Round "5.2"]
[White "YANKELEVICH, Lev"]
[Black "LAGARDE, Maxime"]
[Result "0-1"]
[TimeControl "5min+3s"]
[WhiteTitle "GM"]
[BlackTitle "GM"]
[WhiteFideId "-"]
[BlackFideId "-"]
[WhiteElo "2373"]
[BlackElo "2583"]

1. d4 {[%clk 00:05:03]} {[%emt 00:10:21]} Nf6 {[%clk 00:05:03]} {[%emt
00:00:01]} 2. c4 {[%clk 00:05:03]} {[%emt 00:00:02]} b6 {[%clk 00:05:03]} 3.
Nc3 {[%clk 00:05:02]} {[%emt 00:00:04]} Bb7 {[%clk 00:05:03]} 4. Qc2 {[%clk
00:05:02]} {[%emt 00:00:01]} Nc6 {[%clk 00:05:03]} {[%emt 00:00:01]} 5. Nf3
{[%emt 00:00:04]} Nb4 {[%clk 00:05:03]} 6. Qb1 {[%clk 00:05:01]} {[%emt
00:00:03]} Bxf3 {[%clk 00:05:03]} {[%emt 00:00:02]} 7. exf3 {[%clk 00:04:49]}
{[%emt 00:00:15]} e6 {[%clk 00:04:56]} {[%emt 00:00:10]} 8. Be3 {[%clk
00:04:42]} {[%emt 00:00:10]} c5 {[%clk 00:04:40]} {[%emt 00:00:19]} 9. d5
{[%clk 00:04:14]} {[%emt 00:00:31]} Bd6 {[%clk 00:04:18]} {[%emt 00:00:25]} 10.
a3 {[%clk 00:04:06]} {[%emt 00:00:11]} Na6 {[%clk 00:04:18]} {[%emt 00:00:01]}
11. dxe6 {[%clk 00:03:22]} {[%emt 00:00:47]} fxe6 {[%clk 00:04:16]} {[%emt
00:00:05]} 12. Bd3 {[%clk 00:03:22]} {[%emt 00:00:02]} Be5 {[%clk 00:03:33]}
{[%emt 00:00:46]} 13. Qc2 {[%clk 00:03:21]} {[%emt 00:00:04]} O-O {[%clk
00:03:28]} {[%emt 00:00:08]} 14. g4 {[%clk 00:03:04]} {[%emt 00:00:20]} Kh8
{[%clk 00:02:59]} {[%emt 00:00:32]} 15. h4 {[%clk 00:02:33]} {[%emt 00:00:34]}
Nc7 {[%clk 00:02:58]} {[%emt 00:00:04]} 16. h5 {[%clk 00:02:26]} {[%emt
00:00:10]} d5 {[%clk 00:02:58]} {[%emt 00:00:03]} 17. g5 {[%clk 00:02:22]}
{[%emt 00:00:07]} d4 {[%clk 00:02:56]} {[%emt 00:00:06]} 18. gxf6 {[%clk
00:02:05]} {[%emt 00:00:19]} Qxf6 {[%clk 00:02:52]} {[%emt 00:00:07]} 19. O-O-O
{[%clk 00:01:30]} {[%emt 00:00:39]} dxc3 {[%clk 00:02:35]} {[%emt 00:00:19]} 20.
Bxh7 {[%clk 00:01:30]} {[%emt 00:00:03]} cxb2+ {[%clk 00:02:33]} {[%emt
00:00:06]} 21. Kb1 {[%clk 00:01:30]} Rad8 {[%clk 00:02:28]} {[%emt 00:00:08]}
22. Rxd8 {[%clk 00:01:26]} {[%emt 00:00:07]} Rxd8 {[%clk 00:02:27]} {[%emt
00:00:04]} 23. Be4 {[%clk 00:01:03]} {[%emt 00:00:25]} b5 {[%clk 00:02:26]}
{[%emt 00:00:05]} 24. Rg1 {[%clk 00:01:02]} {[%emt 00:00:04]} Bf4 {[%clk
00:02:07]} {[%emt 00:00:22]} 25. Bxc5 {[%clk 00:00:44]} {[%emt 00:00:21]} bxc4
{[%clk 00:02:04]} {[%emt 00:00:06]} 26. Qxc4 {[%clk 00:00:44]} {[%emt
00:00:02]} Nd5 {[%clk 00:01:59]} {[%emt 00:00:07]} 27. Bxd5 {[%clk 00:00:43]}
{[%emt 00:00:04]} Rxd5 {[%clk 00:01:58]} {[%emt 00:00:04]} 28. Bb4 {[%clk
00:00:32]} {[%emt 00:00:14]} Be5 {[%clk 00:01:45]} {[%emt 00:00:16]} 29. h6
{[%clk 00:00:17]} {[%emt 00:00:18]} gxh6 {[%clk 00:01:22]} {[%emt 00:00:26]} 30.
Ka2 {[%clk 00:00:17]} {[%emt 00:00:02]} Rd8 {[%clk 00:01:13]} {[%emt 00:00:11]}
31. Qg4 {[%clk 00:00:16]} {[%emt 00:00:04]} Qf5 {[%clk 00:01:11]} {[%emt
00:00:05]} 32. Qh4 {[%clk 00:00:16]} {[%emt 00:00:03]} b1=Q+ {[%clk 00:01:11]}
{[%emt 00:00:03]} 0-1

[Event "15e Open International de Quenza"]
[Site "Quenza"]
[Date "2026.07.05"]
[Round "5.9"]
[White "PAOLI, Guillaume"]
[Black "BRODOWSKI, Piotr"]
[Result "0-1"]
[TimeControl "5min+3s"]
[WhiteTitle "-"]
[BlackTitle "IM"]
[WhiteFideId "-"]
[BlackFideId "-"]
[WhiteElo "1991"]
[BlackElo "2435"]

1. e4 {[%clk 00:05:03]} {[%emt 00:09:28]} g6 {[%clk 00:05:03]} {[%emt
00:00:03]} 2. d4 {[%clk 00:05:03]} {[%emt 00:00:02]} d6 {[%clk 00:05:03]}
{[%emt 00:00:01]} 3. Nc3 {[%clk 00:05:03]} a6 {[%clk 00:05:03]} {[%emt
00:00:01]} 4. f4 {[%clk 00:05:03]} {[%emt 00:00:01]} Bg7 {[%clk 00:05:03]}
{[%emt 00:00:03]} 5. Bc4 {[%clk 00:05:03]} {[%emt 00:00:03]} b5 {[%clk
00:05:00]} {[%emt 00:00:07]} 6. Bb3 {[%clk 00:05:03]} {[%emt 00:00:02]} Bb7
{[%clk 00:05:00]} {[%emt 00:00:03]} 7. Nf3 {[%clk 00:04:54]} {[%emt 00:00:11]}
e6 {[%clk 00:05:00]} {[%emt 00:00:02]} 8. Be3 {[%clk 00:04:50]} {[%emt
00:00:06]} b4 {[%clk 00:05:00]} {[%emt 00:00:04]} 9. f5 {[%clk 00:04:15]}
{[%emt 00:00:39]} bxc3 {[%clk 00:04:53]} {[%emt 00:00:09]} 10. fxe6 {[%clk
00:04:15]} {[%emt 00:00:01]} fxe6 {[%clk 00:04:49]} {[%emt 00:00:07]} 11. Ng5
{[%clk 00:04:13]} {[%emt 00:00:04]} cxb2 {[%clk 00:04:41]} {[%emt 00:00:12]} 12.
Rb1 {[%clk 00:04:13]} Qe7 {[%clk 00:04:33]} {[%emt 00:00:11]} 13. O-O {[%clk
00:03:59]} {[%emt 00:00:17]} Nf6 {[%clk 00:03:21]} {[%emt 00:01:15]} 14. e5
{[%clk 00:03:59]} {[%emt 00:00:01]} Nd5 {[%clk 00:03:16]} {[%emt 00:00:09]} 15.
Bxd5 {[%clk 00:03:56]} {[%emt 00:00:05]} Bxd5 {[%clk 00:03:16]} {[%emt
00:00:02]} 16. Rf7 {[%clk 00:03:56]} {[%emt 00:00:01]} Qxf7 {[%clk 00:03:16]}
{[%emt 00:00:04]} 17. Nxf7 {[%clk 00:03:56]} {[%emt 00:00:01]} Kxf7 {[%clk
00:03:16]} {[%emt 00:00:01]} 18. Qf1+ {[%clk 00:03:40]} {[%emt 00:00:19]} Ke8
{[%clk 00:03:05]} {[%emt 00:00:14]} 19. c4 {[%clk 00:03:40]} {[%emt 00:00:02]}
Be4 {[%clk 00:02:58]} {[%emt 00:00:10]} 20. Rxb2 {[%clk 00:03:38]} {[%emt
00:00:06]} Rf8 {[%clk 00:02:52]} {[%emt 00:00:08]} 21. Qe1 {[%clk 00:03:15]}
{[%emt 00:00:26]} d5 {[%clk 00:02:52]} {[%emt 00:00:04]} 22. c5 {[%clk
00:03:04]} {[%emt 00:00:13]} Nc6 {[%clk 00:02:51]} {[%emt 00:00:04]} 23. Rb7
{[%clk 00:02:54]} {[%emt 00:00:13]} Kd7 {[%clk 00:02:51]} {[%emt 00:00:01]} 24.
Qh4 {[%clk 00:02:49]} {[%emt 00:00:07]} h5 {[%clk 00:02:51]} {[%emt 00:00:02]}
25. g4 {[%clk 00:02:42]} {[%emt 00:00:09]} Rf3 {[%clk 00:02:41]} {[%emt
00:00:14]} 26. Bf2 {[%clk 00:02:34]} {[%emt 00:00:10]} Raf8 {[%clk 00:02:41]}
{[%emt 00:00:02]} 27. Rb2 {[%clk 00:02:32]} {[%emt 00:00:05]} Rd3 {[%clk
00:02:35]} {[%emt 00:00:10]} 28. Rb1 {[%clk 00:02:09]} {[%emt 00:00:27]} Bxe5
{[%clk 00:02:27]} {[%emt 00:00:11]} 29. Qg5 {[%clk 00:01:54]} {[%emt 00:00:18]}
Nxd4 {[%clk 00:02:04]} {[%emt 00:00:26]} 30. Qh6 {[%clk 00:01:45]} {[%emt
00:00:11]} Rf7 {[%clk 00:02:04]} {[%emt 00:00:02]} 31. c6+ {[%clk 00:01:20]}
{[%emt 00:00:29]} Nxc6 {[%clk 00:02:02]} {[%emt 00:00:04]} 32. gxh5 {[%clk
00:01:20]} {[%emt 00:00:02]} gxh5 {[%clk 00:01:58]} {[%emt 00:00:07]} 33. Qxh5
{[%clk 00:01:15]} {[%emt 00:00:08]} Rdf3 {[%clk 00:01:58]} {[%emt 00:00:03]} 34.
Bg3 {[%clk 00:00:33]} {[%emt 00:00:45]} Bd4+ {[%clk 00:01:58]} {[%emt
00:00:02]} 35. Kh1 {[%clk 00:00:33]} {[%emt 00:00:02]} Rf1# {[%clk 00:01:58]}
{[%emt 00:00:02]} 0-1